[Event "Ramat Gan Masters-A Winter 2023"]
[Site "Ramat Gan/ISR"]
[Date "2023.01.23"]
[Round "2.7"]
[White "Sherman, Reem"]
[Black "Medovoy, Yaniv"]
[Result "1-0"]
[Annotator "TA"]
[ECO "B29"]
[WhiteElo "2249"]
[BlackElo "1842"]
[PlyCount "59"]
[EventDate "2023.01.17"]
[EventType "swiss"]
[SourceTitle "playchess.com"]
[Source "ChessBase"]
[SourceQuality "1"]
[TimeControl "5400+30"]

{[%evp 17,59,29,35,24,64,10,18,19,20,0,0,0,0,0,39,40,135,139,118,144,163,76,69,82,229,134,237,233,536,534,527,541,701,702,12835,12833,12809,5891,29996,29997,29997,29998,29998,29999]} 1. e4 {[%emt 0:00:01]} c5 {[%emt 0:01:37]} 2. Nf3 {[%emt 0:00:07]} Nf6 {[%emt 0:00:20]} 3. e5 {[%emt 0:00:07]} Nd5 {[%emt 0:00:10]} 4. Nc3 {[%emt 0:00:05]} e6 {[%emt 0:00:06]} 5. Nxd5 {[%emt 0:00:05]} exd5 {[%emt 0:00:13]} 6. d4 {[%emt 0:00:04]} Nc6 {[%emt 0:00:13]} 7. dxc5 {[%emt 0:00:07]} Bxc5 {[%emt 0:00:06]} 8. Qxd5 {[%emt 0:00:12]} d6 {[%emt 0:00:09] is recently more successful than 8...Qb6.} 9. exd6 {[%emt 0:00:07]} Qb6 $1 {[%emt 0:00:08]} 10. Qe4+ {[%emt 0:00:23] B29: Sicilian: 2 Nf3 Nf6 (Nimzowitsch Variation).} (10. d7+ Bxd7 11. Qe4+ Kf8 $15) 10... Be6 $1 {[%emt 0:00:02] [#]} 11. d7+ $1 {[%emt 0:00:10]} Kxd7 $11 {[%emt 0:02:42]} 12. Be3 {[%emt 0:00:32] The position is equal.} Bxe3 {[%emt 0:03:49]} 13. fxe3 {[%emt 0:01:09] aiming for 0-0-0+.} Qxb2 {[%emt 0:04:29]} 14. Rd1+ {[%emt 0:00:06]} Ke7 {[%emt 0:00:28] [#]} 15. Kf2 $146 {[%emt 0:04:16]} (15. Nd4 Nxd4 16. Qxd4 (16. exd4 Rac8 $15) 16... Qxd4 17. exd4 Bxa2 $15) ({Predecessor:} 15. Nd4 Rhd8 16. Qh4+ f6 17. Qxh7 Nxd4 18. exd4 Rxd4 19. Be2 Rxd1+ 20. Bxd1 Qb4+ 21. Kf2 {½-½ De Gleria,F (2420)-Buenermann,V (2325) NRW Class2 0405 2004 (1.1)}) 15... Rhd8 {[%emt 0:35:32]} 16. Bd3 {[%emt 0:06:16] Rb1 would be deadly. Chess con chili.} Qxa2 {[%emt 0:29:26]} (16... Qf6 $14) 17. Qh4+ $16 {[%emt 0:07:04]} Kf8 {[%emt 0:04:25]} 18. Qxh7 {[%emt 0:00:57]} ({Stronger than} 18. Bxh7 g6 19. Qh6+ Ke8 20. Bxg6 fxg6 21. Qxg6+ Bf7 $17) 18... f6 {[%emt 0:01:29]} 19. Rhf1 {[%emt 0:11:17]} (19. Ra1 $1 $18 {[%cal Ra1a2] and White stays clearly on top.} Qd5 20. Rhb1) 19... Bg8 {[%emt 0:03:03]} 20. Qh8 {[%emt 0:00:14]} Qe6 {[%emt 0:01:37] [#] A mistake that costs the game.} (20... Rxd3 $16 {might work better.} 21. Rxd3 Qxc2+ 22. Rd2 Qh7 23. Qxh7 Bxh7) 21. Rde1 {[%emt 0:27:36]} (21. Ng5 $1 $18 {[%cal Rg5e6]} Qg4 22. h4) 21... a5 {[%emt 0:04:28] [#]} (21... Rac8 $16 {was worth a try.} 22. Kg1 (22. Nd4 Nxd4 23. exd4 Qf7 $16) 22... Ne7) 22. Kg1 $1 $18 {[%emt 0:00:16] Hoping for Ng5.} (22. Nd4 Nxd4 23. exd4 Qf7 $16) 22... Rd6 $2 {[%emt 0:03:01]} (22... Ne7 {is tougher.} 23. Nd4 Qe5) 23. Ng5 {[%emt 0:01:47]} (23. Nd4 Nxd4 24. exd4 Qf7 $18) 23... Qd5 {[%emt 0:02:17]} 24. Rf5 {[%emt 0:02:17]} Ne5 {[%emt 0:00:58]} 25. Ref1 {[%emt 0:00:19] Nh7+ is the strong threat.} Nxd3 {[%emt 0:01:12]} 26. Rxd5 {[%emt 0:00:10]} Rxd5 {[%emt 0:00:03]} 27. Ne6+ {[%emt 0:00:35]} Kf7 {[%emt 0:00:15]} 28. Qxg7+ {[%emt 0:00:08] White mates.} Kxe6 {[%emt 0:00:01]} 29. Rxf6+ {[%emt 0:00:10]} Ke5 {[%emt 0:00:14]} 30. Qe7+ {[%emt 0:00:11] An entertaining game by Sherman.   Weighted Error Value: White=0.15 (very precise) /Black=0.63} 1-0

[Event "Ramat Gan Masters-A Winter 2023"]
[Site "Ramat Gan/ISR"]
[Date "2023.01.23"]
[Round "2.8"]
[White "Shapira, Avner"]
[Black "Noy, Eyal"]
[Result "0-1"]
[Annotator "TA"]
[ECO "B06"]
[WhiteElo "1814"]
[BlackElo "2117"]
[PlyCount "128"]
[EventDate "2023.01.17"]
[EventType "swiss"]
[SourceTitle "playchess.com"]
[Source "ChessBase"]
[SourceQuality "1"]
[TimeControl "5400+30"]

{[%evp 9,128,42,44,29,51,47,44,38,53,29,30,0,0,-24,-18,-64,-64,-65,-7,-103,-89,-137,-137,-141,-130,-155,-141,-131,-110,-110,-102,-107,-96,-118,-111,-104,-112,-97,-70,-131,-144,-127,-80,-83,-80,-81,-87,-92,-93,-110,-121,-121,-114,-110,-96,-94,-80,-150,-156,-184,-169,-160,-178,-183,-178,-201,-208,-235,-214,-198,-86,-136,-164,-178,-90,-96,-84,-131,-131,-129,-102,-107,-104,-113,-122,-122,-91,-92,-91,-162,0,-56,-52,-58,-53,-112,-50,-74,-14,-94,-49,-97,-6,-210,-216,-215,-212,-251,-245,-416,-429,-424,-422,-426,-404,-370,-235,-322,-322,-1095,-1047]} 1. e4 {[%emt 0:09:40]} d6 {[%emt 0:00:17]} 2. d4 {[%emt 0:00:08]} g6 {[%emt 0:00:13]} 3. Be3 {[%emt 0:01:01]} Bg7 {[%emt 0:00:04]} 4. f3 {[%emt 0:13:23]} c5 {[%emt 0:00:47]} 5. Ne2 {[%emt 0:00:16] [#]} Qb6 $146 {[%emt 0:03:35]} ({Predecessor:} 5... Nc6 6. Nbc3 cxd4 7. Nxd4 Nf6 8. Qd2 O-O 9. h4 Nxd4 10. Bxd4 Be6 11. h5 Qa5 12. g4 Rfc8 13. a3 b5 14. Nxb5 Qxd2+ 15. Kxd2 a6 16. Nc3 Nxe4+ 17. Nxe4 Bxd4 18. c3 Be5 19. hxg6 hxg6 20. Ke3 Rab8 {0-1 Roux,B (2131)-Hjartarson,J (2468) Titled Tuesday intern op 23rd Aug Late blitz 2022 (6)}) 6. Nbc3 {[%emt 0:01:27] B06: Modern Defence.} Qxb2 {[%emt 0:02:53]} 7. Rb1 {[%emt 0:00:40]} Qa3 {[%emt 0:00:02]} 8. Qd2 {[%emt 0:00:38] White is slightly better.} Na6 {[%emt 0:12:36]} 9. Nb5 {[%emt 0:31:31]} (9. Nd5 $5 {[%cal Rd4c5]}) 9... Qxa2 {[%emt 0:00:42]} 10. Nec3 {[%emt 0:00:02]} (10. Rd1 $5 {[%cal Rd4c5]}) 10... Qa5 {[%emt 0:05:10]} 11. Bc4 {[%emt 0:00:26]} cxd4 {[%emt 0:02:03]} 12. Nxd4 {[%emt 0:06:22]} (12. Bxd4 $11 Nf6 13. Nd5 (13. Nxa7 O-O $15) 13... Qxd2+ {[%mdl 64] Remove Defender} 14. Kxd2 Bh6+ 15. Ke2 Nxd5 16. Bxh8) 12... Nf6 $1 $15 {[%emt 0:03:07]} 13. Bb5+ {[%emt 0:00:31]} Nd7 {[%emt 0:01:35]} (13... Kf8 $15) 14. O-O {[%emt 0:05:58]} (14. Bxa6 $1 $11 bxa6 15. Nd5 Qxd2+ 16. Kxd2 Bxd4 17. Bxd4) 14... Nac5 $17 {[%emt 0:01:33]} 15. Ra1 {[%emt 0:06:36]} ({White should try} 15. Rfd1) 15... Qd8 {[%emt 0:00:14]} 16. Bh6 {[%emt 0:02:02]} O-O {[%emt 0:01:00]} 17. Nd5 {[%emt 0:00:45]} e6 {[%emt 0:00:58]} 18. Bxg7 {[%emt 0:00:36]} Kxg7 {[%emt 0:00:01]} 19. Ne3 {[%emt 0:00:02]} Nf6 {[%emt 0:01:59]} 20. Rfd1 {[%emt 0:00:57]} Qe7 {[%emt 0:00:22]} 21. Be2 {[%emt 0:01:40]} Bd7 {[%emt 0:08:53]} 22. Nb3 {[%emt 0:00:21]} Nxb3 {[%emt 0:00:23]} 23. cxb3 {[%emt 0:00:02]} Ne8 {[%emt 0:02:04]} 24. e5 {[%emt 0:04:37]} d5 {[%emt 0:01:19]} 25. Ng4 {[%emt 0:00:16]} f5 {[%emt 0:02:37]} (25... a6 $142 26. Qh6+ Kg8) 26. exf6+ {[%emt 0:02:12]} Nxf6 {[%emt 0:00:02]} 27. Qd4 {[%emt 0:00:22][%cal Od1c1]} a6 {[%emt 0:01:16]} 28. Ne5 {[%emt 0:01:04]} Rfc8 {[%emt 0:00:32][%cal Oe7c5]} 29. g4 {[%emt 0:00:22]} Kg8 $1 {[%emt 0:01:00]} 30. g5 {[%emt 0:00:50]} Ne8 {[%emt 0:00:32][%cal Bf6e8,Be8d6,Bd6f5][%mdl 32]} 31. f4 {[%emt 0:00:13]} Nd6 {[%emt 0:00:37]} 32. Ng4 {[%emt 0:01:53] White wants to mate with Nh6+.} Nf5 {[%emt 0:04:44]} 33. Qe5 {[%emt 0:03:04]} (33. Qb6 $142) 33... Qc5+ $1 {[%emt 0:11:29]} 34. Kg2 {[%emt 0:00:34] [#] Nf6+ would be deadly.} Qc7 $1 {[%emt 0:00:09]} 35. Nf6+ {[%emt 0:01:51]} Kf7 {[%emt 0:00:16] Threatens to win with ...Qxe5.} 36. Nxd7 {[%emt 0:01:37]} Qxd7 {[%emt 0:00:12]} 37. Bg4 {[%emt 0:00:31]} Rc2+ {[%emt 0:01:54]} 38. Kh3 {[%emt 0:00:09]} Rac8 {[%emt 0:00:12] Prevents Rac1.} 39. Rd3 {[%emt 0:01:29] Dodges R8c3} Qe7 {[%emt 0:03:32]} (39... Ng7 $19 {...R2c6 is the strong threat.} 40. Rad1 Qd8) 40. Re1 {[%emt 0:00:18]} (40. Bxf5 $142 gxf5 41. Re1) 40... Ng7 {[%emt 0:05:25]} 41. Rde3 {[%emt 0:03:47][%cal Oe5d5]} R8c6 {[%emt 0:01:55]} ({Better is} 41... Re8 $19 42. R1e2 Rxe2 43. Rxe2 Rc8) 42. Qxd5 {[%emt 0:00:44]} Qd6 {[%emt 0:02:30] Dancing on a razor blade.} 43. Qe4 {[%emt 0:00:17] [#]} ({White should play} 43. Qf3) 43... Rd2 $1 {[%emt 0:00:21]} ({Of course not} 43... Qd2 $6 44. R1e2 Qd5 45. Qxc2 Rxc2 46. Rxc2 $11) 44. Kg3 {[%emt 0:00:19]} Qd5 {[%emt 0:03:45]} 45. Qxd5 {[%emt 0:00:26]} Rxd5 {[%emt 0:00:01]} 46. h4 {[%emt 0:00:01]} Rd2 {[%emt 0:01:15]} 47. Rh1 {[%emt 0:00:38]} Rcc2 {[%emt 0:00:21]} 48. h5 {[%emt 0:00:13]} Rg2+ {[%emt 0:00:27]} 49. Kh3 {[%emt 0:00:17]} (49. Kh4 $17) 49... Rgd2 $2 {[%emt 0:03:27]} (49... gxh5 $19 50. Bf3 Rgf2) 50. hxg6+ {[%emt 0:00:03]} (50. Kg3 $1 $11) 50... hxg6 $15 {[%emt 0:00:05]} 51. Rhe1 {[%emt 0:00:51][%cal Rg4e6]} Rd6 {[%emt 0:00:30]} 52. R1e2 {[%emt 0:01:10]} (52. Kg3 $1 $15) 52... Rc1 {[%emt 0:01:54]} (52... Rxe2 $17 53. Bxe2 Nf5) 53. Kg2 {[%emt 0:00:18]} Ke7 {[%emt 0:02:26]} (53... a5 $17) 54. Kf3 {[%emt 0:00:05]} (54. Rh3 $1 $11 {remains equal.}) 54... Rb6 {[%emt 0:00:56]} 55. Rb2 {[%emt 0:00:26]} (55. Kg2 $15 {feels stronger.}) 55... Ne8 {[%emt 0:00:14]} (55... Kd6 $17) 56. f5 $2 {[%emt 0:00:08] This costs White the game.} (56. Rh2 $11 {and White stays safe.} Rf1+ 57. Kg3 Rg1+ 58. Kf3) 56... gxf5 $19 {[%emt 0:00:08]} 57. Bxf5 {[%emt 0:00:07]} Rc5 {[%emt 0:00:17]} 58. Bg4 {[%emt 0:01:49]} Rxg5 {[%emt 0:00:08]} 59. Rh2 $2 {[%emt 0:00:02]} (59. Bh3 {was called for.}) 59... Nf6 {[%emt 0:00:15]} 60. Bh3 {[%emt 0:00:26]} Rgb5 {[%emt 0:00:29]} 61. Rb2 {[%emt 0:00:47]} Nd5 {[%emt 0:00:02]} 62. Rd3 {[%emt 0:00:08]} Nb4 {[%emt 0:00:07]} 63. Rc3 {[%emt 0:00:32]} Nc6 {[%emt 0:00:01][%cal Ob5b3] Hoping for ...Rxb3!} 64. Bf1 $2 {[%emt 0:00:22] [#]} (64. Ke3) 64... Rxb3 $3 {[%emt 0:00:19][%mdl 576] Decoy. Excellently played by Noy!   Weighted Error Value: White=0.38/Black=0.25 (precise)} 0-1

[Event "Ramat Gan Masters-A Winter 2023"]
[Site "Ramat Gan/ISR"]
[Date "2023.01.23"]
[Round "2.9"]
[White "Weber, Yonatan"]
[Black "Sobel, Ido"]
[Result "0-1"]
[Annotator "NA RC COMBH"]
[ECO "E01"]
[WhiteElo "1527"]
[BlackElo "1871"]
[PlyCount "80"]
[EventDate "2023.01.17"]
[EventType "swiss"]
[SourceTitle "playchess.com"]
[Source "ChessBase"]
[SourceQuality "1"]
[TimeControl "5400+30"]

1. c4 {[%emt 0:00:04]} e6 {[%emt 0:00:33]} 2. g3 {[%emt 0:00:05]} d5 {[%emt 0:00:06]} 3. Bg2 {[%emt 0:00:08]} Nf6 {[%emt 0:00:05]} 4. Nf3 {[%emt 0:00:09]} Bd6 {[%emt 0:00:44]} 5. O-O {[%emt 0:01:59]} c6 {[%emt 0:00:04]} 6. d4 {[%emt 0:02:03]} h6 {[%emt 0:00:37]} 7. b3 {[%emt 0:00:36]} Nbd7 {[%emt 0:01:46]} 8. Bb2 {[%emt 0:00:19]} b6 {[%emt 0:00:14]} 9. Nc3 {[%emt 0:00:59]} O-O {[%emt 0:00:26]} 10. Nd2 {[%emt 0:00:15]} Bb7 {[%emt 0:03:05]} 11. e4 {[%emt 0:00:19]} dxe4 {[%emt 0:00:01]} 12. Ndxe4 {[%emt 0:00:16]} Be7 {[%emt 0:00:04]} 13. Qc2 {[%emt 0:05:10]} Qc7 {[%emt 0:00:57]} 14. Rfd1 {[%emt 0:01:50]} Rfd8 {[%emt 0:01:22]} 15. Rac1 {[%emt 0:00:30]} Rac8 {[%emt 0:01:28]} 16. Qb1 {[%emt 0:02:41]} Qb8 {[%emt 0:02:37]} 17. c5 {[%emt 0:09:04]} Nd5 {[%emt 0:04:40]} 18. Ba3 {[%emt 0:10:28]} N7f6 {[%emt 0:14:07]} 19. Nxf6+ {[%emt 0:05:42]} Nxf6 {[%emt 0:02:47]} 20. b4 {[%emt 0:00:57]} Rd7 {[%emt 0:02:10]} 21. Ne2 {[%emt 0:08:14]} (21. Qb3 $14) 21... Ba6 {[%emt 0:09:13]} ({Black should try} 21... Rcd8 $15) 22. Nf4 {[%emt 0:05:12]} g5 {[%emt 0:01:47]} 23. Nxe6 {[%emt 0:06:01]} Be2 {[%emt 0:09:33]} (23... fxe6 $2 24. Qg6+ Kh8 25. Bb2 $18) 24. Re1 {[%emt 0:05:40]} Bg4 {[%emt 0:00:02] [#]} 25. d5 $1 {[%emt 0:00:31]} Nxd5 {[%emt 0:04:10]} 26. Nd4 {[%emt 0:01:27]} Bf6 $2 {[%emt 0:03:56]} (26... bxc5 $1 $14 27. Nf5 Bf8) 27. Re4 {[%emt 0:03:37] [#]} Nc3 $1 {[%emt 0:17:24]} 28. Rxc3 {[%emt 0:02:00]} Bxd4 {[%emt 0:00:06]} 29. Rxg4 {[%emt 0:09:06]} Bxc3 {[%emt 0:00:04]} 30. h4 {[%emt 0:04:37]} Qe5 {[%emt 0:07:36]} 31. hxg5 {[%emt 0:00:51]} hxg5 {[%emt 0:02:17]} 32. Re4 $2 {[%emt 0:04:24]} (32. b5 cxb5 33. cxb6 axb6 34. Re4) 32... Qf6 {[%emt 0:01:32]} 33. Bh3 {[%emt 0:00:20]} Rd2 {[%emt 0:00:15]} 34. f4 {[%emt 0:01:54]} Rcd8 $19 {[%emt 0:00:59]} (34... Bd4+ $142 35. Kf1 Qh8 36. Ke1 Bc3 37. Re2 Qxh3 38. Rxd2 Qh1+ {[%mdl 64] Skewer} 39. Kf2 Qxb1 40. Bb2 Bxd2 41. cxb6 Be1+ {[%mdl 64] Skewer} 42. Kg1 Qxb2 43. b7 Rb8 44. Kh1 Bxg3 45. Kg1 Qh2+ 46. Kf1 Qf2#) 35. Qb3 {[%emt 0:01:03]} g4 {[%emt 0:03:13]} 36. Bxg4 {[%emt 0:01:00]} Bd4+ {[%emt 0:03:11]} 37. Kf1 {[%emt 0:00:31]} Qh6 {[%emt 0:00:14]} 38. Qf3 {[%emt 0:01:56]} Qh2 {[%emt 0:00:33]} 39. Ke1 {[%emt 0:00:54]} Bf2+ {[%emt 0:00:29]} 40. Kf1 {[%emt 0:00:35]} Qg1# {[%emt 0:00:02]} 0-1

[Event "Ramat Gan Masters-A Winter 2023"]
[Site "Ramat Gan/ISR"]
[Date "2023.01.23"]
[Round "2.10"]
[White "Elkayam, Omer"]
[Black "Levi, Shoval"]
[Result "1-0"]
[Annotator "NA RC COMBH"]
[ECO "D35"]
[WhiteElo "1553"]
[BlackElo "1604"]
[PlyCount "89"]
[EventDate "2023.01.17"]
[EventType "swiss"]
[SourceTitle "playchess.com"]
[Source "ChessBase"]
[SourceQuality "1"]
[TimeControl "5400+30"]

1. d4 {[%emt 0:00:02]} e6 {[%emt 0:00:07]} 2. c4 {[%emt 0:00:02]} Nf6 {[%emt 0:00:06]} 3. Nc3 {[%emt 0:00:05]} Bb4 {[%emt 0:01:13]} 4. Qc2 {[%emt 0:00:01]} d5 {[%emt 0:01:01]} 5. Bg5 {[%emt 0:04:08]} O-O {[%emt 0:03:37]} 6. cxd5 {[%emt 0:00:10]} exd5 {[%emt 0:00:22]} 7. e3 {[%emt 0:00:28]} h6 {[%emt 0:04:34]} 8. Bh4 {[%emt 0:03:11]} c6 {[%emt 0:06:09]} 9. Bd3 {[%emt 0:00:24]} Re8 {[%emt 0:05:44]} 10. Nge2 {[%emt 0:04:21]} Nbd7 {[%emt 0:04:22]} 11. O-O {[%emt 0:00:22]} Qe7 {[%emt 0:10:37]} 12. a3 {[%emt 0:01:21]} Bd6 {[%emt 0:00:21]} 13. Bg3 {[%emt 0:02:48]} a6 {[%emt 0:06:29]} 14. b4 {[%emt 0:01:21]} b6 {[%emt 0:00:42]} 15. Rfc1 {[%emt 0:14:29]} Bb7 {[%emt 0:00:27]} 16. Bxd6 {[%emt 0:04:05]} Qxd6 {[%emt 0:00:06]} 17. Ng3 {[%emt 0:02:20]} Rec8 {[%emt 0:06:10]} 18. Nf5 {[%emt 0:03:00]} Qe6 {[%emt 0:02:48]} 19. Ne2 {[%emt 0:01:35]} Ne4 {[%emt 0:01:49]} 20. Neg3 {[%emt 0:09:44]} Ndf6 {[%emt 0:01:57]} 21. Qe2 {[%emt 0:03:11]} c5 {[%emt 0:08:43]} 22. bxc5 {[%emt 0:01:34]} bxc5 {[%emt 0:00:19]} 23. Rab1 {[%emt 0:02:54]} Nxg3 {[%emt 0:02:14]} 24. Nxg3 {[%emt 0:03:31]} Rc7 {[%emt 0:06:35]} 25. dxc5 {[%emt 0:01:54]} a5 {[%emt 0:05:21]} 26. Rb6 {[%emt 0:03:18]} Bc6 {[%emt 0:02:57]} 27. Nf5 {[%emt 0:01:49]} Nd7 {[%emt 0:01:10]} 28. Rb2 {[%emt 0:07:57]} Qf6 {[%emt 0:01:48]} 29. Rbc2 {[%emt 0:04:31]} Ne5 {[%emt 0:01:02]} 30. Nd4 {[%emt 0:02:07]} Nxd3 {[%emt 0:03:37]} 31. Qxd3 {[%emt 0:00:01]} Ba4 {[%emt 0:01:12]} 32. Rc3 {[%emt 0:01:06]} Rac8 {[%emt 0:00:23]} 33. Qf5 {[%emt 0:01:45]} Qd8 {[%emt 0:01:32]} 34. h3 {[%emt 0:01:52]} Bc6 {[%emt 0:01:18]} 35. Qe5 {[%emt 0:00:46]} Re7 {[%emt 0:02:13]} 36. Qg3 {[%emt 0:03:43]} Qd7 {[%emt 0:01:45]} 37. Qd6 {[%emt 0:01:23]} Ba4 {[%emt 0:02:13]} 38. Nf5 {[%emt 0:01:19]} Re6 {[%emt 0:02:20]} 39. Qxd7 {[%emt 0:00:54]} Bxd7 {[%emt 0:00:06]} 40. c6 {[%emt 0:01:12]} Be8 {[%emt 0:00:03]} 41. Rc5 {[%emt 0:00:30]} Kf8 {[%emt 0:01:26]} 42. Nd4 {[%emt 0:03:13]} Rd6 {[%emt 0:01:10]} 43. Rxa5 {[%emt 0:00:03]} g6 {[%emt 0:00:55]} 44. Rcc5 {[%emt 0:00:57]} Bxc6 {[%emt 0:01:25]} 45. Ra6 {[%emt 0:01:02]} 1-0

[Event "Ramat Gan Masters-A Winter 2023"]
[Site "Ramat Gan/ISR"]
[Date "2023.02.13"]
[Round "3.1"]
[White "Gershkowich, David"]
[Black "Karp, Ilya"]
[Result "0-1"]
[Annotator "TA"]
[ECO "B63"]
[WhiteElo "2188"]
[BlackElo "2392"]
[PlyCount "120"]
[EventDate "2023.01.17"]
[EventType "swiss"]
[SourceTitle "playchess.com"]
[Source "ChessBase"]
[SourceQuality "1"]
[TimeControl "5400+30"]

{[%evp 20,120,40,43,49,46,58,47,60,52,44,0,43,0,53,60,82,78,89,81,89,66,99,75,80,60,88,94,85,79,68,69,66,33,78,27,33,22,39,0,2,0,11,-22,-16,-7,22,8,22,10,10,14,19,-63,-64,-65,-62,-97,-81,-85,-90,-77,-81,-151,-173,-200,-175,-316,-269,-265,-275,-279,-268,-230,-243,-250,-258,-233,-144,-211,-79,-88,-85,-80,-83,-99,-102,-236,-231,-242,-225,-227,-208,-12838,-12839,-12839,-12839,-12840,-12840,-29997,-29998,-29998,-29999]} 1. e4 {[%emt 0:00:08]} c5 {[%emt 0:00:12]} 2. Nf3 {[%emt 0:00:06]} d6 {[%emt 0:00:11]} 3. d4 {[%emt 0:00:54]} cxd4 {[%emt 0:00:06]} 4. Nxd4 {[%emt 0:00:02]} Nf6 {[%emt 0:00:07]} 5. Nc3 {[%emt 0:00:11]} Nc6 {[%emt 0:00:05]} 6. Bg5 {[%emt 0:00:10]} e6 {[%emt 0:00:06]} 7. Qd2 {[%emt 0:00:10]} Qb6 {[%emt 0:00:07]} 8. Nb3 {[%emt 0:03:44]} a6 {[%emt 0:00:46]} 9. O-O-O {[%emt 0:02:19]} Be7 {[%emt 0:00:16][%cal Bf8e7,Be7f6,Bf6d4,Bd4e3][%mdl 32]} 10. f3 {[%emt 0:02:07]} O-O {[%emt 0:00:34]} 11. h4 {[%emt 0:02:58]} Qc7 {[%emt 0:01:37] B63: Sicilian: Richter-Rauzer: 7...Be7 and unusual Black 7th moves.} 12. Bxf6 {[%emt 0:02:07]} Bxf6 {[%emt 0:00:53]} 13. Qxd6 {[%emt 0:01:01]} Qb6 {[%emt 0:00:05] Black is weak on the light squares. White is slightly better.} 14. Qc5 {[%emt 0:03:51]} Qc7 {[%emt 0:00:10] [#]} 15. Qd6 $146 {[%emt 0:01:04]} ({Predecessor:} 15. Kb1 b5 16. f4 Be7 17. Qe3 b4 18. Na4 e5 19. Qb6 Qxb6 20. Nxb6 Bg4 {0-1 Korneev,O (2643)-Greenfeld,A (2532) Nova Gorica op-A 19th 2014 (7)}) 15... Qb6 {[%emt 0:01:59]} 16. Qc5 {[%emt 0:01:09]} Qxc5 {[%emt 0:17:41]} (16... Qc7 $1 $11) 17. Nxc5 $14 {[%emt 0:00:05]} Bd4 {[%emt 0:00:07]} 18. Nb3 {[%emt 0:01:10]} Be3+ {[%emt 0:00:49]} 19. Kb1 {[%emt 0:00:10]} b5 {[%emt 0:00:47]} 20. a3 {[%emt 0:01:19]} Ra7 {[%emt 0:06:44]} 21. h5 {[%emt 0:01:55]} Rc7 {[%emt 0:08:45]} 22. Bd3 {[%emt 0:05:01]} b4 {[%emt 0:09:04]} 23. axb4 {[%emt 0:00:08]} Nxb4 {[%emt 0:00:02]} 24. Rhe1 {[%emt 0:02:49]} Bf2 {[%emt 0:01:27]} 25. Re2 {[%emt 0:01:22]} Bg3 {[%emt 0:02:25]} 26. e5 {[%emt 0:22:45]} g6 {[%emt 0:15:31]} 27. Re4 {[%emt 0:13:20]} (27. hxg6 $16 {Ne4 is the strong threat.} hxg6 28. Na5) 27... Nxd3 $11 {[%emt 0:05:34]} 28. Rxd3 {[%emt 0:00:30] Black should prevent f4.} Bb7 {[%emt 0:00:22]} 29. Ree3 {[%emt 0:32:25]} gxh5 {[%emt 0:03:12]} 30. Na5 {[%emt 0:00:00]} Ba8 {[%emt 0:04:14]} 31. b3 {[%emt 0:00:00]} Rb8 {[%emt 0:02:43]} 32. Na4 {[%emt 0:00:00] Inhibits Rc5.} Bf4 {[%emt 0:04:01]} 33. Re2 {[%emt 0:00:00]} Rb5 {[%emt 0:03:20][%cal Og8g7]} 34. Rd8+ {[%emt 0:00:00]} Kg7 {[%emt 0:00:01]} 35. Rxa8 {[%emt 0:00:00]} Rxa5 {[%emt 0:00:01]} 36. c4 {[%emt 0:00:00]} (36. Nb2 $1 $11) 36... Bxe5 $15 {[%emt 0:00:40]} 37. Rd2 {[%emt 0:00:00]} h4 {[%emt 0:03:47]} 38. Ka2 {[%emt 0:00:00]} Bf6 {[%emt 0:00:48]} 39. Ka3 {[%emt 0:00:00]} Be7+ {[%emt 0:00:08]} 40. Kb2 {[%emt 0:00:00]} Bb4 {[%emt 0:00:40]} 41. Rdd8 {[%emt 0:00:00] [#]} ({Better is} 41. Re2) 41... Re5 $1 $17 {[%emt 0:01:01]} 42. Kc2 {[%emt 0:00:58]} Re3 {[%emt 0:01:41] Wards off Nc3. Hoping for ...Kf6.} 43. Nb6 {[%emt 0:01:26]} (43. Rg8+ $142 Kf6 44. Rad8) 43... a5 {[%emt 0:02:44]} ({Don't blunder} 43... Re2+ $2 44. Kd1 Rb2 45. Rg8+ Kh6 46. Rad8 $19) 44. Rg8+ {[%emt 0:02:34]} Kf6 {[%emt 0:01:42]} 45. Rad8 {[%emt 0:00:46] [#]} h3 $1 {[%emt 0:02:28][%mdl 512]} 46. gxh3 {[%emt 0:01:30]} Rc3+ {[%emt 0:00:02]} (46... Rxf3 $2 {too greedy.} 47. Rd3 Rxd3 48. Kxd3) 47. Kb2 {[%emt 0:00:04]} Rxf3 {[%emt 0:00:05]} 48. h4 {[%emt 0:00:49]} Be7 {[%emt 0:02:31]} 49. Rd4 {[%emt 0:01:06]} (49. Rd7 $17 Rc6 50. Rb7) 49... Bc5 {[%emt 0:00:15]} (49... Ke5 $19 50. Rd2 Ke4 51. Re2+ Kf4) 50. Nd7+ {[%emt 0:00:17]} Ke7 {[%emt 0:00:30]} 51. Nxc5 {[%emt 0:00:26]} Rxc5 {[%emt 0:00:01][%mdl 4096] Endgame KRR-KRR} 52. Rgd8 {[%emt 0:00:36]} Rc7 {[%emt 0:00:47] Threatens to win with ...Rb7.} 53. Ra8 {[%emt 0:00:10] Now White is beyond hope.} (53. Rb8 $17) 53... Rb7 $19 {[%emt 0:00:13]} 54. Rxa5 {[%emt 0:00:17]} Rfxb3+ {[%emt 0:00:41]} (54... Rbxb3+ $2 {is the wrong capture.} 55. Kc1) 55. Kc2 {[%emt 0:00:14]} Rb2+ {[%emt 0:00:05]} 56. Kd3 $2 {[%emt 0:00:10]} (56. Kc1) 56... R7b3+ {[%emt 0:00:43]} 57. Ke4 {[%emt 0:00:15]} f5+ {[%emt 0:00:31]} 58. Kf4 {[%emt 0:00:17]} Kf6 {[%emt 0:00:12][%cal Rb2f2]} 59. Rd3 {[%emt 0:00:45]} Rxd3 {[%emt 0:00:09][%cal Rb2f2]} 60. Rxf5+ {[%emt 0:00:09]} exf5 {[%emt 0:00:05] Weighted Error Value: White=0.48/Black=0.15 (very precise)} 0-1